[Event "*** Titled Tuesday Blitz"]
[Site "Chess.com"]
[Date "2019.03.05"]
[Round "8"]
[White "Chessmatus"]
[Black "bluejay1897"]
[Result "1-0"]
[WhiteElo "2278"]
[BlackElo "2154"]
[TimeControl "180+2"]
[EndTime "15:00:22 PST"]
[Termination "Chessmatus won by resignation"]

1. d4 {[%clk 0:03:01.9]} 1... Nf6 {[%clk 0:03:00.5]} 2. c4 {[%clk 0:03:02.9]}
2... e6 {[%clk 0:03:01.5]} 3. g3 {[%clk 0:03:03]} 3... Be7 {[%clk 0:02:59.4]} 4.
Nf3 {[%clk 0:03:03.6]} 4... b6 {[%clk 0:02:58.9]} 5. Bg2 {[%clk 0:03:04.4]} 5...
Bb7 {[%clk 0:03:00.3]} 6. O-O {[%clk 0:03:05.4]} 6... O-O {[%clk 0:03:01.8]} 7.
Re1 {[%clk 0:03:06.7]} 7... d5 {[%clk 0:03:01.2]} 8. Ne5 {[%clk 0:03:07.8]} 8...
Nbd7 {[%clk 0:03:02.1]} 9. Nc3 {[%clk 0:03:07.9]} 9... c5 {[%clk 0:02:57.4]} 10.
cxd5 {[%clk 0:03:06.5]} 10... exd5 {[%clk 0:02:57.9]} 11. Bf4 {[%clk 0:03:07.5]}
11... cxd4 {[%clk 0:02:54.2]} 12. Nb5 {[%clk 0:03:08.7]} 12... Bc5 {[%clk
0:02:50.1]} 13. a3 {[%clk 0:03:09.9]} 13... Nxe5 {[%clk 0:02:50.4]} 14. Bxe5
{[%clk 0:03:10.6]} 14... Qe8 {[%clk 0:02:50.7]} 15. Bxf6 {[%clk 0:03:04.6]}
15... Qxb5 {[%clk 0:02:51.4]} 16. Bxd4 {[%clk 0:03:05.7]} 16... Rfe8 {[%clk
0:02:48.7]} 17. e3 {[%clk 0:03:04.4]} 17... Rad8 {[%clk 0:02:41.1]} 18. Rc1
{[%clk 0:03:04.7]} 18... Bf8 {[%clk 0:02:39.6]} 19. Qd2 {[%clk 0:03:03.9]} 19...
Rc8 {[%clk 0:02:32.4]} 20. Bh3 {[%clk 0:03:05]} 20... Rcd8 {[%clk 0:02:29.6]}
21. Rc7 {[%clk 0:03:04.2]} 21... Bc8 {[%clk 0:02:28.2]} 22. Bg2 {[%clk
0:02:59.9]} 22... Re7 {[%clk 0:02:21.5]} 23. Rec1 {[%clk 0:02:57.9]} 23... Be6
{[%clk 0:02:14.5]} 24. Rxe7 {[%clk 0:02:27.4]} 24... Bxe7 {[%clk 0:02:16.4]} 25.
Rc7 {[%clk 0:02:28.3]} 25... Rd7 {[%clk 0:02:00.9]} 26. Rc1 {[%clk 0:01:51.8]}
26... h6 {[%clk 0:01:42.3]} 27. Qc3 {[%clk 0:01:50.2]} 27... Bf8 {[%clk
0:01:34]} 28. Bf1 {[%clk 0:01:45.7]} 28... Qa4 {[%clk 0:01:34.5]} 29. Bd3 {[%clk
0:01:38.7]} 29... Rd8 {[%clk 0:01:33.5]} 30. Qd2 {[%clk 0:01:21.8]} 30... Rc8
{[%clk 0:01:23.6]} 31. Rxc8 {[%clk 0:01:21.8]} 31... Bxc8 {[%clk 0:01:24.7]} 32.
Qc1 {[%clk 0:01:21.6]} 32... Be6 {[%clk 0:01:25.3]} 33. Bb1 {[%clk 0:01:20.5]}
33... Qc4 {[%clk 0:01:23.5]} 34. Qd1 {[%clk 0:01:17.7]} 34... Bh3 {[%clk
0:01:20.1]} 35. Bd3 {[%clk 0:01:18.2]} 35... Qc8 {[%clk 0:01:19.4]} 36. Bf1
{[%clk 0:01:16.2]} 36... Be6 {[%clk 0:01:17.1]} 37. Bg2 {[%clk 0:01:15.4]} 37...
Qc6 {[%clk 0:01:14.7]} 38. Bf3 {[%clk 0:01:14.4]} 38... Bc5 {[%clk 0:01:08.9]}
39. Kg2 {[%clk 0:01:14]} 39... Qd7 {[%clk 0:01:05.4]} 40. Qd3 {[%clk 0:01:03.7]}
40... Bh3+ {[%clk 0:00:57.4]} 41. Kg1 {[%clk 0:01:04.8]} 41... Bf5 {[%clk
0:00:58.2]} 42. Qc3 {[%clk 0:01:05.5]} 42... Bf8 {[%clk 0:00:59.1]} 43. Be5
{[%clk 0:00:52.7]} 43... Bh3 {[%clk 0:00:50.1]} 44. Bg2 {[%clk 0:00:50.6]} 44...
Bg4 {[%clk 0:00:47.7]} 45. Qd2 {[%clk 0:00:46.6]} 45... Be6 {[%clk 0:00:29]} 46.
Kf1 {[%clk 0:00:34.2]} 46... Qb5+ {[%clk 0:00:29.2]} 47. Ke1 {[%clk 0:00:32]}
47... Qc5 {[%clk 0:00:27.3]} 48. Qc3 {[%clk 0:00:31.5]} 48... Qb5 {[%clk
0:00:22]} 49. Bf1 {[%clk 0:00:31.6]} 49... Qd7 {[%clk 0:00:20.9]} 50. Qc7 {[%clk
0:00:24.9]} 50... Qa4 {[%clk 0:00:18.6]} 51. Qc3 {[%clk 0:00:19.8]} 51... Qd7
{[%clk 0:00:18.7]} 52. Be2 {[%clk 0:00:19.7]} 52... f6 {[%clk 0:00:18.3]} 53.
Bd4 {[%clk 0:00:20.3]} 53... Bf5 {[%clk 0:00:19.2]} 54. Bf1 {[%clk 0:00:20.3]}
54... Be4 {[%clk 0:00:19.7]} 55. Qb3 {[%clk 0:00:19.6]} 55... Qf5 {[%clk
0:00:18.8]} 56. Qb5 {[%clk 0:00:20]} 56... Kh7 {[%clk 0:00:19.8]} 57. Qe8 {[%clk
0:00:20.6]} 57... Bc5 {[%clk 0:00:21]} 58. Bxc5 {[%clk 0:00:21.1]} 58... bxc5
{[%clk 0:00:22.9]} 59. Qb5 {[%clk 0:00:22.3]} 59... d4 {[%clk 0:00:23.6]} 60.
exd4 {[%clk 0:00:23.1]} 60... cxd4 {[%clk 0:00:25.5]} 61. Qxf5+ {[%clk
0:00:24.3]} 61... Bxf5 {[%clk 0:00:27.4]} 62. Kd2 {[%clk 0:00:25.8]} 62... Kg6
{[%clk 0:00:27.7]} 63. b4 {[%clk 0:00:26.5]} 63... Kf7 {[%clk 0:00:28]} 64. Bd3
{[%clk 0:00:27.1]} 64... Ke6 {[%clk 0:00:29.2]} 65. Bxf5+ {[%clk 0:00:28.3]}
65... Kxf5 {[%clk 0:00:31.1]} 66. Kd3 {[%clk 0:00:29.8]} 66... Ke5 {[%clk
0:00:32.4]} 67. a4 {[%clk 0:00:30.9]} 67... Kd5 {[%clk 0:00:33.5]} 68. b5 {[%clk
0:00:31.3]} 68... Kc5 {[%clk 0:00:34]} 69. f3 {[%clk 0:00:32.3]} 69... f5 {[%clk
0:00:33.3]} 70. f4 {[%clk 0:00:32.6]} 70... g5 {[%clk 0:00:33.8]} 71. h3 {[%clk
0:00:31.9]} 71... gxf4 {[%clk 0:00:33]} 72. gxf4 {[%clk 0:00:33.2]} 72... Kd5
{[%clk 0:00:25]} 73. a5 {[%clk 0:00:33.7]} 73... Kc5 {[%clk 0:00:20.7]} 74. b6
{[%clk 0:00:34.9]} 74... axb6 {[%clk 0:00:18.8]} 75. axb6 {[%clk 0:00:36.2]}
75... Kxb6 {[%clk 0:00:19]} 76. Kxd4 {[%clk 0:00:37.7]} 76... Kc6 {[%clk
0:00:20.2]} 77. Ke5 {[%clk 0:00:39.1]} 1-0

[Event "*** Titled Tuesday Blitz"]
[Site "Chess.com"]
[Date "2019.03.05"]
[Round "8"]
[White "HrvojeZagreb"]
[Black "saraswathii"]
[Result "1/2-1/2"]
[WhiteElo "2122"]
[BlackElo "2267"]
[TimeControl "180+2"]
[EndTime "15:00:27 PST"]
[Termination "Game drawn by stalemate"]

1. d4 {[%clk 0:03:01.9]} 1... Nf6 {[%clk 0:02:59.9]} 2. Bf4 {[%clk 0:03:02.3]}
2... d6 {[%clk 0:03:00.3]} 3. Nc3 {[%clk 0:03:02.1]} 3... g6 {[%clk 0:03:01.6]}
4. e4 {[%clk 0:03:03.1]} 4... Bg7 {[%clk 0:03:02.8]} 5. Qd2 {[%clk 0:03:04.4]}
5... O-O {[%clk 0:03:03.6]} 6. O-O-O {[%clk 0:03:04.7]} 6... Nfd7 {[%clk
0:03:02.6]} 7. Bh6 {[%clk 0:03:04.3]} 7... e5 {[%clk 0:03:02.9]} 8. dxe5 {[%clk
0:02:58.9]} 8... Nxe5 {[%clk 0:03:00.7]} 9. h3 {[%clk 0:02:57.8]} 9... Be6
{[%clk 0:02:57.1]} 10. Bxg7 {[%clk 0:02:58.4]} 10... Kxg7 {[%clk 0:02:57.8]} 11.
f4 {[%clk 0:02:58.9]} 11... Nec6 {[%clk 0:02:58.3]} 12. g4 {[%clk 0:02:50.2]}
12... f5 {[%clk 0:02:58.8]} 13. gxf5 {[%clk 0:02:43.1]} 13... gxf5 {[%clk
0:03:00.7]} 14. Nge2 {[%clk 0:02:30.1]} 14... Nd7 {[%clk 0:02:58.8]} 15. Rg1+
{[%clk 0:02:21.1]} 15... Kh8 {[%clk 0:02:59.2]} 16. Ng3 {[%clk 0:02:09.2]} 16...
fxe4 {[%clk 0:02:52.1]} 17. Ngxe4 {[%clk 0:02:06.1]} 17... Qh4 {[%clk
0:02:51.9]} 18. Ng5 {[%clk 0:01:56.6]} 18... Rae8 {[%clk 0:02:49.4]} 19. Nxe6
{[%clk 0:01:53.1]} 19... Rxe6 {[%clk 0:02:51.3]} 20. Rg4 {[%clk 0:01:51.6]}
20... Qh6 {[%clk 0:02:48.6]} 21. Bb5 {[%clk 0:01:46]} 21... Nf6 {[%clk
0:02:47.3]} 22. Bxc6 {[%clk 0:01:25.7]} 22... Nxg4 {[%clk 0:02:43.5]} 23. hxg4
{[%clk 0:01:27.6]} 23... bxc6 {[%clk 0:02:44.5]} 24. g5 {[%clk 0:01:23.8]} 24...
Qg7 {[%clk 0:02:37.6]} 25. Rh1 {[%clk 0:01:20.1]} 25... Kg8 {[%clk 0:02:29.7]}
26. Ne2 {[%clk 0:00:57.7]} 26... Qe7 {[%clk 0:02:26.6]} 27. Nd4 {[%clk
0:00:48.8]} 27... Re4 {[%clk 0:02:14.4]} 28. f5 {[%clk 0:00:49]} 28... c5 {[%clk
0:02:10.6]} 29. f6 {[%clk 0:00:49.2]} 29... Qf7 {[%clk 0:02:07.7]} 30. Nb3
{[%clk 0:00:33.7]} 30... Qe6 {[%clk 0:02:04.8]} 31. Kb1 {[%clk 0:00:19.2]} 31...
Re8 {[%clk 0:01:52.6]} 32. Nc1 {[%clk 0:00:19.1]} 32... c4 {[%clk 0:01:44.1]}
33. Qh2 {[%clk 0:00:18.6]} 33... Qf7 {[%clk 0:01:42.8]} 34. g6 {[%clk
0:00:13.1]} 34... Qxg6 {[%clk 0:01:43.3]} 35. Rg1 {[%clk 0:00:14.3]} 35... Rg4
{[%clk 0:01:44.2]} 36. f7+ {[%clk 0:00:14.3]} 36... Kxf7 {[%clk 0:01:44.7]} 37.
Rxg4 {[%clk 0:00:16]} 37... Qxg4 {[%clk 0:01:45.7]} 38. Qxh7+ {[%clk 0:00:17.1]}
38... Qg7 {[%clk 0:01:46.1]} 39. Qh5+ {[%clk 0:00:15.4]} 39... Qg6 {[%clk
0:01:42.2]} 40. Qd5+ {[%clk 0:00:15]} 40... Qe6 {[%clk 0:01:42.9]} 41. Qc6
{[%clk 0:00:15.7]} 41... Re7 {[%clk 0:01:42.6]} 42. a4 {[%clk 0:00:15.2]} 42...
d5 {[%clk 0:01:41.6]} 43. Qc5 {[%clk 0:00:14.6]} 43... c6 {[%clk 0:01:41.5]} 44.
a5 {[%clk 0:00:14.8]} 44... Rb7 {[%clk 0:01:34.7]} 45. Qf2+ {[%clk 0:00:12.8]}
45... Ke8 {[%clk 0:01:33.9]} 46. Qh4 {[%clk 0:00:09.1]} 46... Qe5 {[%clk
0:01:32.3]} 47. c3 {[%clk 0:00:09.8]} 47... Qxc3 {[%clk 0:01:07.5]} 48. Qh5+
{[%clk 0:00:09.3]} 48... Kd8 {[%clk 0:01:07.2]} 49. Qg5+ {[%clk 0:00:08.4]}
49... Kd7 {[%clk 0:01:06.6]} 50. Qf5+ {[%clk 0:00:08.1]} 50... Kd6 {[%clk
0:01:06.2]} 51. Qf8+ {[%clk 0:00:08.1]} 51... Ke6 {[%clk 0:00:56.9]} 52. Qc8+
{[%clk 0:00:08]} 52... Kd6 {[%clk 0:00:51.2]} 53. Qxb7 {[%clk 0:00:08.6]} 53...
Qxa5 {[%clk 0:00:52.2]} 54. Qb8+ {[%clk 0:00:09.2]} 54... Kc5 {[%clk 0:00:42.2]}
55. Qf8+ {[%clk 0:00:09.8]} 55... Kb5 {[%clk 0:00:39.3]} 56. Qb8+ {[%clk
0:00:10.1]} 56... Kc5 {[%clk 0:00:36.1]} 57. Qf8+ {[%clk 0:00:10.6]} 57... Kb5
{[%clk 0:00:34.3]} 58. Qd6 {[%clk 0:00:10.6]} 58... c3 {[%clk 0:00:27.7]} 59.
Qb8+ {[%clk 0:00:08]} 59... Qb6 {[%clk 0:00:17.4]} 60. Qxb6+ {[%clk 0:00:06.3]}
60... axb6 {[%clk 0:00:19.3]} 61. bxc3 {[%clk 0:00:07.9]} 61... Kc4 {[%clk
0:00:20.8]} 62. Kc2 {[%clk 0:00:08.8]} 62... d4 {[%clk 0:00:21.6]} 63. cxd4
{[%clk 0:00:07.5]} 63... Kxd4 {[%clk 0:00:23.5]} 64. Nb3+ {[%clk 0:00:08.3]}
64... Kc4 {[%clk 0:00:24.6]} 65. Kb2 {[%clk 0:00:09.4]} 65... b5 {[%clk
0:00:24]} 66. Nd2+ {[%clk 0:00:11]} 66... Kb4 {[%clk 0:00:24]} 67. Nb3 {[%clk
0:00:11.4]} 67... c5 {[%clk 0:00:25.2]} 68. Nxc5 {[%clk 0:00:11.5]} 68... Kxc5
{[%clk 0:00:26.3]} 69. Kc3 {[%clk 0:00:12.7]} 69... b4+ {[%clk 0:00:26.7]} 70.
Kb3 {[%clk 0:00:13.9]} 70... Kb5 {[%clk 0:00:28.6]} 71. Kb2 {[%clk 0:00:14.9]}
71... Kc4 {[%clk 0:00:30.1]} 72. Kc2 {[%clk 0:00:16.1]} 72... b3+ {[%clk
0:00:32]} 73. Kb2 {[%clk 0:00:17.3]} 73... Kb4 {[%clk 0:00:33.9]} 74. Kb1 {[%clk
0:00:18.3]} 74... Kc3 {[%clk 0:00:35.5]} 75. Kc1 {[%clk 0:00:19.5]} 75... b2+
{[%clk 0:00:36.7]} 76. Kb1 {[%clk 0:00:20.8]} 76... Kb3 {[%clk 0:00:38]} 1/2-1/2

[Event "*** Titled Tuesday Blitz"]
[Site "Chess.com"]
[Date "2019.03.05"]
[Round "8"]
[White "731291"]
[Black "Jbd735"]
[Result "1/2-1/2"]
[WhiteElo "2662"]
[BlackElo "2462"]
[TimeControl "180+2"]
[EndTime "15:01:17 PST"]
[Termination "Game drawn by repetition"]

1. e4 {[%clk 0:03:01.9]} 1... e5 {[%clk 0:03:01]} 2. Nf3 {[%clk 0:03:02]} 2...
Nc6 {[%clk 0:03:02.2]} 3. Nc3 {[%clk 0:03:03.4]} 3... Nf6 {[%clk 0:03:02.6]} 4.
d4 {[%clk 0:03:04.3]} 4... exd4 {[%clk 0:03:02.5]} 5. Nxd4 {[%clk 0:03:06.2]}
5... Bb4 {[%clk 0:03:03.4]} 6. Nxc6 {[%clk 0:03:07.3]} 6... bxc6 {[%clk
0:03:05]} 7. Bd3 {[%clk 0:03:08.5]} 7... d5 {[%clk 0:03:06.4]} 8. exd5 {[%clk
0:03:10.3]} 8... cxd5 {[%clk 0:03:08]} 9. O-O {[%clk 0:03:11.5]} 9... O-O {[%clk
0:03:08.5]} 10. h3 {[%clk 0:03:12.8]} 10... h6 {[%clk 0:03:00.3]} 11. Qf3 {[%clk
0:03:13.7]} 11... c6 {[%clk 0:02:58.2]} 12. Ne2 {[%clk 0:03:15]} 12... Re8
{[%clk 0:02:55]} 13. Bf4 {[%clk 0:03:14.9]} 13... Bd6 {[%clk 0:02:50.8]} 14.
Rad1 {[%clk 0:03:15.4]} 14... Rb8 {[%clk 0:02:47.7]} 15. b3 {[%clk 0:03:16.1]}
15... Bxf4 {[%clk 0:02:27.8]} 16. Nxf4 {[%clk 0:03:18]} 16... Qe7 {[%clk
0:02:24.1]} 17. c4 {[%clk 0:03:16.6]} 17... Bb7 {[%clk 0:02:09.7]} 18. Nh5
{[%clk 0:03:00.6]} 18... Ne4 {[%clk 0:01:49.6]} 19. Bxe4 {[%clk 0:03:01.1]}
19... Qxe4 {[%clk 0:01:40.5]} 20. Qxe4 {[%clk 0:03:02]} 20... Rxe4 {[%clk
0:01:34.4]} 21. Ng3 {[%clk 0:03:01.3]} 21... Re6 {[%clk 0:01:24.7]} 22. cxd5
{[%clk 0:03:00.4]} 22... cxd5 {[%clk 0:01:26.3]} 23. Nf5 {[%clk 0:02:50]} 23...
Rc8 {[%clk 0:01:15]} 24. Rd2 {[%clk 0:02:48.3]} 24... Kf8 {[%clk 0:01:13.7]} 25.
f3 {[%clk 0:02:46.1]} 25... h5 {[%clk 0:01:05.2]} 26. h4 {[%clk 0:02:44.2]}
26... g6 {[%clk 0:01:04.5]} 27. Nd4 {[%clk 0:02:43.6]} 27... Re7 {[%clk
0:00:57.9]} 28. Kf2 {[%clk 0:02:44.5]} 28... a6 {[%clk 0:00:45.3]} 29. Re1
{[%clk 0:02:45]} 29... Rxe1 {[%clk 0:00:43.3]} 30. Kxe1 {[%clk 0:02:46.9]} 30...
Rc1+ {[%clk 0:00:42.4]} 31. Rd1 {[%clk 0:02:47.9]} 31... Rc7 {[%clk 0:00:34.4]}
32. Kd2 {[%clk 0:02:48]} 32... Ke7 {[%clk 0:00:34.6]} 33. Rc1 {[%clk 0:02:46.3]}
33... Rxc1 {[%clk 0:00:25.4]} 34. Kxc1 {[%clk 0:02:48.2]} 34... Kd6 {[%clk
0:00:21.8]} 35. Kd2 {[%clk 0:02:48.5]} 35... f6 {[%clk 0:00:21.1]} 36. b4 {[%clk
0:02:47.7]} 36... Bc8 {[%clk 0:00:20.9]} 37. g3 {[%clk 0:02:47.3]} 37... Bd7
{[%clk 0:00:21.5]} 38. Ke3 {[%clk 0:02:44.2]} 38... Ke5 {[%clk 0:00:20.3]} 39.
f4+ {[%clk 0:02:44.6]} 39... Kd6 {[%clk 0:00:20.9]} 40. Nb3 {[%clk 0:02:46]}
40... Bb5 {[%clk 0:00:19.2]} 41. Kd4 {[%clk 0:02:45.7]} 41... Bc4 {[%clk
0:00:17.3]} 42. Nc5 {[%clk 0:02:47]} 42... Bxa2 {[%clk 0:00:12.9]} 43. Nxa6
{[%clk 0:02:46.6]} 43... Bc4 {[%clk 0:00:14.8]} 44. Nc5 {[%clk 0:02:47.5]} 44...
Bb5 {[%clk 0:00:15.5]} 45. Nb3 {[%clk 0:02:45.9]} 45... Bc4 {[%clk 0:00:15.3]}
46. Nd2 {[%clk 0:02:47]} 46... Bb5 {[%clk 0:00:16.1]} 47. Nf3 {[%clk 0:02:48.1]}
47... Bd7 {[%clk 0:00:15.5]} 48. Ne1 {[%clk 0:02:49.3]} 48... Bb5 {[%clk
0:00:15]} 49. Nc2 {[%clk 0:02:50]} 49... Bd7 {[%clk 0:00:14.1]} 50. Ne3 {[%clk
0:02:50.1]} 50... Bc6 {[%clk 0:00:11.9]} 51. Nd1 {[%clk 0:02:35.2]} 51... Bd7
{[%clk 0:00:12.6]} 52. Nc3 {[%clk 0:02:36.5]} 52... Bc6 {[%clk 0:00:10]} 53. b5
{[%clk 0:02:20.5]} 53... Ba8 {[%clk 0:00:07.9]} 54. Na4 {[%clk 0:02:21.3]} 54...
Ke6 {[%clk 0:00:06.6]} 55. Nc5+ {[%clk 0:02:16]} 55... Kf5 {[%clk 0:00:07.1]}
56. Ke3 {[%clk 0:02:02.5]} 56... Kg4 {[%clk 0:00:07.7]} 57. Kf2 {[%clk
0:02:03.5]} 57... d4 {[%clk 0:00:08.5]} 58. b6 {[%clk 0:02:01.4]} 58... g5
{[%clk 0:00:07.8]} 59. hxg5 {[%clk 0:01:59.4]} 59... fxg5 {[%clk 0:00:09.7]} 60.
fxg5 {[%clk 0:02:00.1]} 60... Kxg5 {[%clk 0:00:11.6]} 61. Ne6+ {[%clk
0:02:01.3]} 61... Kg4 {[%clk 0:00:11.8]} 62. Nxd4 {[%clk 0:02:01]} 62... h4
{[%clk 0:00:12.1]} 63. gxh4 {[%clk 0:02:02.9]} 63... Kxh4 {[%clk 0:00:13.5]} 64.
Ke3 {[%clk 0:01:52.3]} 64... Kg5 {[%clk 0:00:14.2]} 65. Nb5 {[%clk 0:01:52.8]}
65... Kf6 {[%clk 0:00:13.8]} 66. Kd4 {[%clk 0:01:54.1]} 66... Ke7 {[%clk
0:00:14]} 67. Kc5 {[%clk 0:01:55.3]} 67... Kd7 {[%clk 0:00:12.8]} 68. Na7 {[%clk
0:01:52.9]} 68... Bh1 {[%clk 0:00:12.2]} 69. Kb5 {[%clk 0:01:54]} 69... Bb7
{[%clk 0:00:12.2]} 70. Ka5 {[%clk 0:01:55.6]} 70... Kd6 {[%clk 0:00:12.5]} 71.
Kb5 {[%clk 0:01:56.5]} 71... Kd7 {[%clk 0:00:12.1]} 72. Kc5 {[%clk 0:01:56.9]}
72... Bg2 {[%clk 0:00:10.6]} 73. Nb5 {[%clk 0:01:58.4]} 73... Kc8 {[%clk
0:00:09.3]} 74. Nc3 {[%clk 0:01:59.9]} 74... Kb8 {[%clk 0:00:09.7]} 75. Ne2
{[%clk 0:01:57.9]} 75... Kb7 {[%clk 0:00:08.5]} 76. Nd4 {[%clk 0:01:59.8]} 76...
Bh1 {[%clk 0:00:08.4]} 77. Nb5 {[%clk 0:02:01.7]} 77... Bg2 {[%clk 0:00:08.3]}
78. Nd6+ {[%clk 0:02:03.6]} 78... Kb8 {[%clk 0:00:09.3]} 79. Kb5 {[%clk
0:02:04.7]} 79... Bf1+ {[%clk 0:00:10]} 80. Kc6 {[%clk 0:02:05.6]} 80... Bg2+
{[%clk 0:00:11.1]} 81. Kd7 {[%clk 0:02:07.3]} 81... Bh3+ {[%clk 0:00:11.9]} 82.
Kd8 {[%clk 0:02:08.4]} 82... Bg4 {[%clk 0:00:11.7]} 83. Ke7 {[%clk 0:02:06.1]}
83... Bh3 {[%clk 0:00:12.8]} 84. Kf6 {[%clk 0:02:08]} 84... Bg2 {[%clk
0:00:13.6]} 85. Ke5 {[%clk 0:02:08.1]} 85... Bh3 {[%clk 0:00:14.7]} 86. Kd4
{[%clk 0:02:10]} 86... Bg2 {[%clk 0:00:16]} 87. Kc5 {[%clk 0:02:11.9]} 87... Bf3
{[%clk 0:00:16.4]} 88. Nc4 {[%clk 0:02:13.8]} 88... Kb7 {[%clk 0:00:16.4]} 89.
Ne5 {[%clk 0:02:15.7]} 89... Bg2 {[%clk 0:00:16.7]} 90. Nf7 {[%clk 0:02:17]}
90... Kb8 {[%clk 0:00:17.4]} 91. Nd6 {[%clk 0:02:18.9]} 91... Bf3 {[%clk
0:00:17.8]} 92. Nf5 {[%clk 0:02:19.1]} 92... Bg2 {[%clk 0:00:18]} 93. Nd4 {[%clk
0:02:21]} 93... Bh1 {[%clk 0:00:17.2]} 94. Ne2 {[%clk 0:02:22.4]} 94... Bf3
{[%clk 0:00:17.8]} 95. Nf4 {[%clk 0:02:24.3]} 95... Be4 {[%clk 0:00:18.6]} 96.
Kb5 {[%clk 0:02:18.4]} 96... Bf3 {[%clk 0:00:19]} 97. Ka6 {[%clk 0:02:19]} 97...
Be4 {[%clk 0:00:17.3]} 98. Ka5 {[%clk 0:02:15.1]} 98... Bf3 {[%clk 0:00:17.8]}
99. Kb5 {[%clk 0:02:16.6]} 99... Be4 {[%clk 0:00:18.3]} 100. Ka6 {[%clk
0:02:18.1]} 100... Bb7+ {[%clk 0:00:18.3]} 101. Kb5 {[%clk 0:02:18.9]} 101...
Bf3 {[%clk 0:00:19.4]} 102. Ne6 {[%clk 0:02:19.2]} 102... Be2+ {[%clk
0:00:19.7]} 103. Kc5 {[%clk 0:02:20.1]} 103... Bf3 {[%clk 0:00:20.3]} 104. Nd4
{[%clk 0:02:16.6]} 104... Bg2 {[%clk 0:00:20.8]} 105. Nc6+ {[%clk 0:02:04.8]}
105... Bxc6 {[%clk 0:00:21.4]} 106. Kxc6 {[%clk 0:02:06.7]} 106... Kc8 {[%clk
0:00:22.7]} 107. Kb5 {[%clk 0:02:08.6]} 107... Kb7 {[%clk 0:00:23.6]} 108. Kc5
{[%clk 0:02:10.5]} 108... Kb8 {[%clk 0:00:24.8]} 109. Kc6 {[%clk 0:02:12.4]}
109... Kc8 {[%clk 0:00:26]} 110. Kd6 {[%clk 0:02:14]} 110... Kb7 {[%clk
0:00:26.7]} 111. Kc5 {[%clk 0:02:15.9]} 111... Kb8 {[%clk 0:00:27.9]} 112. Kb5
{[%clk 0:02:17.8]} 112... Kb7 {[%clk 0:00:28.9]} 113. Ka5 {[%clk 0:02:18.4]}
113... Kb8 {[%clk 0:00:29.9]} 114. Ka6 {[%clk 0:02:20.3]} 114... Ka8 {[%clk
0:00:30.7]} 115. Kb5 {[%clk 0:02:22]} 115... Kb7 {[%clk 0:00:31.7]} 116. Kc5
{[%clk 0:02:23.2]} 116... Kb8 {[%clk 0:00:32.8]} 117. Kb4 {[%clk 0:02:24.8]}
117... Kb7 {[%clk 0:00:33.7]} 118. Ka5 {[%clk 0:02:25.8]} 118... Kb8 {[%clk
0:00:34.8]} 119. Kb5 {[%clk 0:02:27.3]} 119... Kb7 {[%clk 0:00:35.9]} 120. Kc5
{[%clk 0:02:29]} 120... Kb8 {[%clk 0:00:36.7]} 121. Kc6 {[%clk 0:02:30.9]}
121... Kc8 {[%clk 0:00:37.6]} 122. Kd6 {[%clk 0:02:31.5]} 122... Kb7 {[%clk
0:00:38.2]} 123. Kc5 {[%clk 0:02:33.4]} 1/2-1/2